fUSD/lending_fUSD_20250930
["ID","MTS","AMOUNT","RATE_DAILY","PERIOD"]
[388502992,1759221054100,-500.0,0.00019999,2]
[388502993,1759221054115,-500.0,0.00019999,2]
[388502994,1759221054128,-1812.93,0.00019999,2]
[388502995,1759221054138,-4337.86,0.00019999,2]
[388502996,1759221054147,-500.0,0.00019999,2]
[388502997,1759221054160,-500.0,0.00019999,2]
[388502998,1759221054169,-500.0,0.00019999,2]
[388502999,1759221054179,-500.0,0.00019999,2]
[388503000,1759221054190,-500.0,0.00019999,2]
[388503001,1759221054200,-500.0,0.00019999,2]
[388503002,1759221054210,-2850.66,0.00019999,2]
[388503003,1759221054220,-500.0,0.00019999,2]
[388503004,1759221054230,-500.0,0.00019999,2]
[388503005,1759221054240,-500.0,0.00019999,2]
[388503006,1759221054250,-500.0,0.00019999,2]
[388503007,1759221054259,-3854.7,0.00019999,2]
[388503008,1759221054269,-500.0,0.00019999,2]
[388503009,1759221054278,-501.37,0.00019999,2]
[388503010,1759221054287,-750.55,0.00019999,2]
[388503011,1759221054298,-500.0,0.00019999,2]
[388503012,1759221054309,-500.0,0.00019999,2]
[388503013,1759221054320,-423.50849958,0.00019999,2]
[388503014,1759221054330,-500.0,0.00019999,2]
[388503015,1759221054340,-500.0,0.00019999,2]
[388503016,1759221054350,-299.13171675,0.00019999,2]
[388503017,1759221054362,-1537.39,0.00019999,2]
[388503018,1759221054372,-500.0,0.00019999,2]
[388503019,1759221054382,-500.0,0.00019999,2]
[388503020,1759221054392,-1680.61,0.00019999,2]
[388503021,1759221054401,-2919.48,0.00019999,2]
[388503022,1759221054411,-500.0,0.00019999,2]
[388503023,1759221054421,-500.0,0.00019999,2]
[388503024,1759221054430,-1545.76,0.00019999,2]
[388503025,1759221054440,-500.0,0.00019999,2]
[388503026,1759221054450,-578.37287863,0.00019999,2]
[388503027,1759221054459,-3421.4,0.00019999,2]
[388503028,1759221054469,-1443.78,0.00019999,2]
[388503029,1759221054479,-819.16,0.00019999,2]
[388503030,1759221054488,-500.0,0.00019999,2]
[388503031,1759221054498,-500.0,0.00019999,2]
[388503032,1759221054508,-500.0,0.00019999,2]
[388503033,1759221054517,-500.0,0.00019999,2]
[388503034,1759221054527,-5549.86,0.00019999,2]
[388503035,1759221054538,-3669.77,0.00019999,2]
[388503036,1759221054548,-2051.31,0.00019999,2]
[388503037,1759221054558,-675.56,0.00019999,2]
[388503038,1759221054568,-514.37,0.00019999,2]
[388503039,1759221054578,-500.0,0.00019999,2]
[388503040,1759221054588,-515.24,0.00019999,2]
[388503041,1759221054598,-500.0,0.00019999,2]
[388503042,1759221054607,-541.74322209,0.00019999,2]
[388503043,1759221054617,-688.44,0.00019999,2]
[388503044,1759221054627,-2215.06,0.00019999,2]
[388503045,1759221054636,-500.0,0.00019999,2]
[388503046,1759221054645,-500.0,0.00019999,2]
[388503047,1759221054654,-1917.5,0.00019999,2]
[388503048,1759221054664,-609.11,0.00019999,2]
[388503049,1759221054673,-3070.04,0.00019999,2]
[388503050,1759221054683,-1785.01,0.00019999,2]
[388503051,1759221054692,-3901.01,0.00019999,2]
[388503052,1759221054702,-500.0,0.00019999,2]
[388503053,1759221054712,-537.27,0.00019999,2]
[388503054,1759221054721,-3296.02,0.00019999,2]
[388503055,1759221054731,-659.72,0.00019999,2]
[388503056,1759221054740,-3404.44,0.00019999,2]
[388503057,1759221054750,-582.71,0.00019999,2]
[388503058,1759221054760,-513.34,0.00019999,2]
[388503059,1759221054769,-500.0,0.00019999,2]
[388503060,1759221054778,-501.49523581,0.00019999,2]
[388503061,1759221054788,-1404.24,0.00019999,2]
[388503062,1759221054816,-572.7,0.00019999,2]
[388503063,1759221054828,-2159.6,0.00019999,2]
[388503064,1759221054838,-1953.99,0.00019999,2]
[388503065,1759221054848,-500.0,0.00019999,2]
[388503066,1759221054857,-500.0,0.00019999,2]
[388503067,1759221054867,-925.98,0.00019999,2]
[388503068,1759221054876,-500.0,0.00019999,2]
[388503069,1759221054886,-500.0,0.00019999,2]
[388503070,1759221054896,-500.0,0.00019999,2]
[388503071,1759221054905,-500.0,0.00019999,2]
[388503072,1759221054915,-1377.12,0.00019999,2]
[388503073,1759221054924,-1218.6,0.00019999,2]
[388503074,1759221054934,-500.0,0.00019999,2]
[388503075,1759221054943,-500.0,0.00019999,2]
[388503076,1759221054953,-649.79,0.00019999,2]
[388503077,1759221054963,-1397.5,0.00019999,2]
[388503078,1759221054972,-733.35,0.00019999,2]
[388503079,1759221054982,-1820.89,0.00019999,2]
[388503080,1759221054991,-500.0,0.00019999,2]
[388503081,1759221055001,-300.13783778,0.00019999,2]
[388503082,1759221055011,-500.0,0.00019999,2]
[388503083,1759221055020,-500.0,0.00019999,2]
[388503084,1759221055030,-500.0,0.00019999,2]
[388503085,1759221055039,-734.24,0.00019999,2]
[388503086,1759221055050,-500.0,0.00019999,2]
[388503087,1759221055059,-1309.62,0.00019999,2]
[388503088,1759221055069,-500.0,0.00019999,2]
[388503089,1759221055079,-500.0,0.00019999,2]
[388503090,1759221055090,-948.54,0.00019999,2]
[388503091,1759221055101,-776.99,0.00019999,2]
[388503092,1759221055114,-500.0,0.00019999,2]
[388503093,1759221055124,-500.0,0.00019999,2]
[388503094,1759221055133,-735.08,0.00019999,2]
[388503095,1759221055143,-500.0,0.00019999,2]
[388503096,1759221055154,-1051.18,0.00019999,2]
[388503097,1759221055164,-610.18518333,0.00019999,2]
[388503098,1759221055173,-500.0,0.00019999,2]
[388503099,1759221055182,-573.25,0.00019999,2]
[388503100,1759221055200,-1480.13,0.00019999,2]
[388503101,1759221055211,-500.0,0.00019999,2]
[388503102,1759221055221,-500.0,0.00019999,2]
[388503103,1759221055231,-611.84,0.00019999,2]
[388503104,1759221055240,-2025.59,0.00019999,2]
[388503105,1759221055250,-2025.59,0.00019999,2]
[388503106,1759221055261,-2025.59,0.00019999,2]
[388503107,1759221055272,-2025.59,0.00019999,2]
[388503108,1759221055282,-2025.59,0.00019999,2]
[388503109,1759221055292,-2025.59,0.00019999,2]
[388503110,1759221055303,-2025.59,0.00019999,2]
[388503111,1759221055314,-8437.25919904,0.0002,2]
[388503112,1759221055324,-3521.26359953,0.0002,2]
[388503113,1759221055333,-150.0,0.0002,2]
[388503114,1759221055343,-111661.04752769,0.0002,2]
[388503115,1759221055353,-150.0,0.0002,2]
[388503116,1759221055363,-501.32,0.0002,2]
[388503117,1759221055373,-1000.0,0.0002,2]
[388503118,1759221055382,-500.0,0.0002,2]
[388503119,1759221055392,-500.0,0.0002,2]
[388503120,1759221055403,-500.0,0.0002,2]
[388503121,1759221055412,-500.0,0.0002,2]
[388503122,1759221055422,-500.0,0.0002,2]
[388503123,1759221055432,-500.0,0.0002,2]
[388503124,1759221055441,-820.82,0.0002,2]
[388503125,1759221055451,-500.0,0.0002,2]
[388503126,1759221055461,-150.0,0.0002,2]
[388503127,1759221055472,-6772077.38199319,0.0002,2]
[388503134,1759221056739,-662.57533926,0.00018708,3]
[388503136,1759221056751,-3.42466074,0.00018708,3]
[388503137,1759221056761,-532.878419,0.00019994,2]
[388503139,1759221056771,-4463.69692026,0.0002,2]
[388503140,1759221056782,-4201.2,0.0002,2]
[388503145,1759221057554,-1137.0,0.00019499,2]
[388503146,1759221057564,-335.7374828,0.00019773,2]
[388503147,1759221057577,-801.2625172,0.00019773,2]
[388503148,1759221057586,-500.0,0.00019994,2]
[388503149,1759221057596,-500.0,0.00019994,2]
[388503150,1759221057606,-2301.18602346,0.00019995,2]
[388503151,1759221057619,-3163.02397654,0.00019995,2]
[388503152,1759221057631,-500.0,0.00019995,2]
[388503153,1759221057640,-500.0,0.00019995,2]
[388503154,1759221057650,-500.0,0.00019995,2]
[388503155,1759221057659,-500.0,0.00019995,2]
[388503156,1759221057669,-610.17,0.00019995,2]
[388503157,1759221057679,-904.43,0.00019997,2]
[388503158,1759221057689,-2025.59,0.00019999,2]
[388503159,1759221057699,-2025.59,0.00019999,2]
[388503160,1759221057708,-2025.59,0.00019999,2]
[388503161,1759221057718,-2025.59,0.00019999,2]
[388503162,1759221057727,-2025.59,0.00019999,2]
[388503163,1759221057737,-2025.59,0.00019999,2]
[388503164,1759221057747,-90889.95655665,0.0002,2]
[388503165,1759221057781,-1629.98469173,0.0002,2]
[388503166,1759221057802,-2554.72909684,0.0002,2]
[388503167,1759221057813,-472.01634291,0.0002,2]
[388503168,1759221057824,-1188.31048285,0.0002,2]
[388503169,1759221057845,-544.69207875,0.0002,2]
[388503170,1759221057856,-2701.8,0.0002,2]
[388503171,1759221057910,-472.86339972,0.0002,2]
[388503172,1759221057922,-372.34049029,0.0002,2]
[388503173,1759221057933,-393.66239999,0.0002,2]
[388503174,1759221057945,-11037.6749018,0.0002,2]
[388503175,1759221058988,-282.680001,0.00019499,2]
[388503176,1759221059009,-217.319999,0.00019499,2]
[388503177,1759221059018,-500.0,0.00019773,2]
[388503178,1759221059028,-500.0,0.00019899,2]
[388503179,1759221059037,-4504.25391708,0.000199,2]
[388503180,1759221059047,-1022.17327024,0.00019994,2]
[388503181,1759221059058,-4275.87761276,0.00019994,2]
[388503182,1759221059068,-500.0,0.00019994,2]
[388503183,1759221059078,-31.30738724,0.00019999,2]
[388503184,1759221059090,-1994.35564903,0.00019999,2]
[388503185,1759221059100,-3351.51523797,0.0002,2]
[388503186,1759221059151,-366.96963075,0.00019994,2]
[388503187,1759221059194,-3710.64036925,0.00019994,2]
[388503188,1759221059206,-574.59,0.00019996,2]
[388503189,1759221059215,-205564.76963075,0.0002,2]
[388503190,1759221060860,-279.66332593,0.00019899,2]
[388503191,1759221060870,-395.17723689,0.00019996,2]
[388503192,1759221060883,-104.82276311,0.00019996,2]
[388503193,1759221060892,-2271.00066959,0.0002,2]
[388503194,1759221061005,-718.32500012,0.00019995,2]
[388503195,1759221061065,-341.76499988,0.00019995,2]
[388503196,1759221061075,-1100.47664924,0.0002,2]
[388503197,1759221061086,-8649.46126661,0.0002,2]
[388503198,1759221061097,-4000.0,0.0002,2]
[388503914,1759221930513,-159.07450352,0.00017369,2]
[388503915,1759221930538,-2840.92549648,0.00017371,2]
[388503916,1759221945357,-639.63931113,0.00017371,2]
[388503917,1759221945384,-2360.36068887,0.00017411,2]
[388503919,1759221948629,-1120.20411874,0.00017411,2]
[388503920,1759221948658,-159.07450352,0.00017415,2]
[388503921,1759221948684,-1720.72137774,0.00017433,2]
[388503922,1759221959643,-1759.84342987,0.00017433,2]
[388503923,1759221959667,-159.07450352,0.00017434,2]
[388503924,1759221959691,-1081.08206661,0.00017436,2]
[388503930,1759221965713,-2399.482741,0.00017436,2]
[388503931,1759221965739,-600.517259,0.00017438,2]
[388503932,1759221968435,-2880.04754861,0.00017438,2]
[388503933,1759221968465,-119.95245139,0.00017438,2]
[388503941,1759221981663,-2220.0,0.00017438,2]
[388504073,1759222231515,-1140.61235622,0.00017438,2]
[388504074,1759222231526,-159.07450352,0.0001744,2]
[388504075,1759222231535,-66.39428659,0.00017443,2]
[388504076,1759222231635,-92.68021693,0.00017443,2]
[388504077,1759222231645,-159.07450352,0.00017446,2]
[388504078,1759222231655,-336.23027975,0.00017466,2]
[388504079,1759222231674,-1000.0,0.00017466,2]
[388504080,1759222231727,-1436.435,0.00017466,2]
[388504081,1759222231782,-707.89952786,0.00017466,2]
[388504082,1759222231792,-159.07450352,0.00017495,2]
[388504083,1759222231801,-62.69284746,0.00017808,2]
[388504084,1759222231815,-654.48917961,0.00017808,2]
[388504085,1759222231827,-282.81797293,0.00017808,2]
[388504089,1759222231837,-471.14302057,0.00017808,2]
[388504090,1759222232079,-541.64327398,0.00017808,2]
[388504091,1759222232089,-148.7803264,0.00017839,2]
[388504092,1759222232102,-31.20993938,0.00017839,2]
[388504093,1759222232111,-300.0,0.00017869,2]
[388504094,1759222232121,-1200.0,0.00017869,2]
[388504095,1759222232131,-6064.24515746,0.0001787,2]
[388504096,1759222232141,-150.0,0.00017975,2]
[388504097,1759222232150,-150.0,0.00017975,2]
[388504098,1759222232160,-150.0,0.00017975,2]
[388504099,1759222232169,-150.0,0.00017975,2]
[388504100,1759222232179,-150.0,0.00017975,2]
[388504101,1759222232189,-150.0,0.00017975,2]
[388504102,1759222232199,-150.0,0.00017975,2]
[388504103,1759222232208,-244.98311025,0.00017975,2]
[388504104,1759222232218,-156.90048431,0.00017975,2]
[388504105,1759222232228,-150.0,0.00017975,2]
[388504106,1759222232238,-246.38382233,0.00017975,2]
[388504107,1759222232247,-150.0,0.00017975,2]
[388504108,1759222232257,-150.0,0.00017975,2]
[388504109,1759222232267,-150.0,0.00017975,2]
[388504110,1759222232276,-150.0,0.00017975,2]
[388504111,1759222232286,-1119.96,0.00018119,2]
[388504112,1759222232295,-250.0,0.00018221,2]
[388504113,1759222232305,-223.06,0.00018266,2]
[388504114,1759222232315,-4431.99,0.00018427,2]
[388504115,1759222232325,-150.17,0.000185,2]
[388504116,1759222232335,-150.22,0.000185,2]
[388504117,1759222232344,-2004.39,0.000185,7]
[388504118,1759222232354,-270.25,0.00018532,2]
[388504119,1759222232364,-1613.78,0.00018582,2]
[388504120,1759222232373,-500.0,0.00018712,2]
[388504121,1759222232383,-201.81401472,0.00018724,2]
[388504122,1759222232393,-165.78343445,0.00018724,2]
[388504123,1759222232403,-922.27102938,0.00018734,2]
[388504124,1759222232412,-151.39,0.00018735,2]
[388504125,1759222232422,-2043.0,0.00018735,2]
[388504126,1759222232432,-3397.0,0.00018735,2]
[388504127,1759222232441,-603.0,0.00018735,2]
[388504128,1759222232451,-1306.0,0.00018735,2]
[388504129,1759222232462,-569.0,0.00018735,2]
[388504130,1759222232472,-1584.0,0.00018735,2]
[388504131,1759222232482,-814.0,0.00018735,2]
[388504132,1759222232491,-4152.0,0.00018735,2]
[388504133,1759222232501,-205.438,0.00018735,2]
[388504134,1759222232511,-1024.16733879,0.00018735,2]
[388504135,1759222232523,-6702.87266121,0.00018735,2]
[388504136,1759222232533,-300.0,0.000188,6]
[388504137,1759222232543,-600.0,0.000189,6]
[388504138,1759222232553,-150.0,0.00018974,2]
[388504139,1759222232563,-150.0,0.00018974,2]
[388504140,1759222232573,-223.62,0.00019013,2]
[388504141,1759222232583,-580.505,0.00019086,2]
[388504142,1759222232593,-8762.3646788,0.00019086,2]
[388504143,1759222232603,-151.0,0.00019086,2]
[388504144,1759222232612,-151.0,0.00019086,2]
[388504145,1759222232622,-601.3376128,0.00019086,2]
[388504146,1759222232632,-607.7834334,0.00019086,2]
[388504147,1759222232642,-322.6107,0.00019086,2]
[388504148,1759222232652,-160.0,0.00019086,2]
[388504149,1759222232662,-151.0,0.00019086,2]
[388504150,1759222232672,-500.0,0.00019086,2]
[388504151,1759222232681,-500.0,0.00019086,2]
[388504152,1759222232692,-500.0,0.00019086,2]
[388504153,1759222232702,-500.0,0.00019086,2]
[388504154,1759222232711,-500.0,0.00019086,2]
[388504155,1759222232721,-500.0,0.00019086,2]
[388504156,1759222232733,-423.81200243,0.00019086,2]
[388504157,1759222232743,-599.60298507,0.00019086,2]
[388504158,1759222232753,-231.28369723,0.00019086,2]
[388504159,1759222232763,-151.0,0.00019178,2]
[388504160,1759222232773,-500.0,0.00019178,2]
[388504161,1759222232784,-500.0,0.00019178,2]
[388504162,1759222232795,-500.0,0.00019178,2]
[388504163,1759222232804,-500.0,0.00019178,2]
[388504164,1759222232814,-500.0,0.00019178,2]
[388504165,1759222232825,-500.0,0.00019178,2]
[388504166,1759222232850,-500.0,0.00019178,2]
[388504167,1759222232863,-500.0,0.00019178,2]
[388504168,1759222232874,-6998.2276,0.000193,2]
[388504169,1759222232886,-1931.35776493,0.00019395,2]
[388504171,1759222232897,-166.64259398,0.00019396,2]
[388504172,1759222232908,-3080.4126759,0.00019396,2]
[388504173,1759222232918,-2500.0,0.00019397,2]
[388504174,1759222232928,-204.24526275,0.00019397,2]
[388504175,1759222232939,-1000.0,0.00019398,2]
[388504177,1759222232949,-5000.0,0.00019399,2]
[388504178,1759222232959,-161.50922692,0.00019399,2]
[388504179,1759222232970,-587.68488562,0.00019399,2]
[388504181,1759222232984,-38486.7689,0.000194,2]
[388504182,1759222232995,-1000.0,0.000194,2]
[388504183,1759222233007,-5196.4,0.000194,7]
[388504184,1759222233019,-1857.57827016,0.000194,7]
[388504186,1759222237473,-474.52590314,0.00018105,2]
[388504187,1759222237483,-6233.0,0.00018735,2]
[388504188,1759222237494,-10216.43172984,0.000194,7]
[388504189,1759222237504,-3045.32,0.000194,7]
[388504190,1759222237514,-1107.59,0.000194,7]
[388504191,1759222237524,-300.38,0.00019404,2]
[388504192,1759222237536,-473.38,0.00019428,2]
[388504193,1759222237546,-490.17,0.00019428,2]
[388504194,1759222237557,-806.58,0.00019428,2]
[388504195,1759222237568,-1931.35776489,0.00019451,2]
[388504196,1759222237579,-3080.41267582,0.00019452,2]
[388504197,1759222237590,-180.94,0.00019485,2]
[388504198,1759222237601,-180.94,0.00019486,2]
[388504199,1759222237611,-180.94,0.00019486,2]
[388504202,1759222238305,-285.80576534,0.00019488,2]
[388504203,1759222238319,-1046.22,0.00019495,2]
[388504204,1759222238332,-500.0,0.00019495,2]
[388504205,1759222238344,-1422.19,0.00019495,2]
[388504206,1759222238356,-500.0,0.00019495,2]
[388504207,1759222238371,-934.65,0.00019495,2]
[388504208,1759222238383,-500.0,0.00019495,2]
[388504209,1759222238395,-500.0,0.00019495,2]
[388504210,1759222238407,-500.0,0.00019495,2]
[388504211,1759222238418,-500.0,0.00019495,2]
[388504212,1759222238428,-4998.56,0.00019495,2]
[388504213,1759222238439,-2434.81,0.00019495,2]
[388504214,1759222238451,-500.0,0.00019495,2]
[388504215,1759222238462,-8899.88,0.00019495,2]
[388504216,1759222238473,-500.0,0.00019495,2]
[388504217,1759222238483,-221.31255407,0.00019495,2]
[388504218,1759222238493,-629.70650215,0.00019495,2]
[388504219,1759222238504,-216.07500356,0.00019495,2]
[388504220,1759222238514,-3534.82,0.00019495,2]
[388504221,1759222238525,-500.0,0.00019495,2]
[388504222,1759222238535,-1602.17,0.00019495,2]
[388504223,1759222238545,-503.97,0.00019495,2]
[388504224,1759222238555,-1860.12,0.00019495,2]
[388504225,1759222238566,-500.0,0.00019495,2]
[388504226,1759222238576,-2558.4,0.00019495,2]
[388504227,1759222238585,-5036.96,0.00019495,2]
[388504228,1759222238596,-1506.06,0.00019495,2]
[388504229,1759222238606,-1084.66,0.00019495,2]
[388504230,1759222238616,-2983.19,0.00019495,2]
[388504231,1759222238628,-543.32,0.00019495,2]
[388504232,1759222238638,-3299.01,0.00019495,2]
[388504233,1759222238647,-500.0,0.00019495,2]
[388504234,1759222238658,-698.43,0.00019495,2]
[388504235,1759222238668,-1442.51,0.00019495,2]
[388504236,1759222238679,-2037.36,0.00019495,2]
[388504237,1759222238689,-3143.47,0.00019495,2]
[388504238,1759222238700,-3207.06,0.00019495,2]
[388504239,1759222238709,-7437.31,0.00019495,2]
[388504240,1759222238719,-1872.59,0.00019495,2]
[388504241,1759222238730,-2031.05,0.00019495,2]
[388504242,1759222238743,-500.0,0.00019495,2]
[388504243,1759222238754,-500.0,0.00019495,2]
[388504244,1759222238764,-500.0,0.00019495,2]
[388504245,1759222238775,-10922.41,0.00019495,2]
[388504246,1759222238785,-500.0,0.00019495,2]
[388504247,1759222238795,-4357.37,0.00019495,2]
[388504248,1759222238805,-764.39,0.00019495,2]
[388504249,1759222238817,-2077.78,0.00019495,2]
[388504250,1759222238827,-500.0,0.00019495,2]
[388504251,1759222238838,-1853.91,0.00019495,2]
[388504252,1759222238849,-1171.79,0.00019495,2]
[388504253,1759222238859,-565.92,0.00019495,2]
[388504254,1759222238869,-2922.13,0.00019495,2]
[388504255,1759222238881,-1423.65,0.00019495,2]
[388504256,1759222238890,-500.0,0.00019495,2]
[388504257,1759222238901,-4736.29,0.00019495,2]
[388504258,1759222238911,-1116.63,0.00019495,2]
[388504259,1759222238921,-151.0,0.00019496,2]
[388504260,1759222238930,-500.0,0.00019496,2]
[388504261,1759222238940,-751.9,0.00019496,2]
[388504262,1759222238950,-751.9,0.00019496,2]
[388504263,1759222238960,-3282.82,0.00019496,2]
[388504264,1759222238970,-500.0,0.00019496,2]
[388504265,1759222238981,-2049.13,0.00019496,2]
[388504266,1759222238991,-1047.87,0.00019496,2]
[388504267,1759222239001,-510.05,0.00019496,2]
[388504268,1759222239012,-500.0,0.00019496,2]
[388504269,1759222239022,-500.0,0.00019496,2]
[388504270,1759222239031,-524.96,0.00019496,2]
[388504271,1759222239041,-500.0,0.00019496,2]
[388504272,1759222239051,-2397.6,0.00019496,2]
[388504273,1759222239060,-590.79,0.00019496,2]
[388504274,1759222239071,-541.83,0.00019496,2]
[388504275,1759222239081,-590.79,0.00019496,2]
[388504276,1759222239091,-1108.51,0.00019496,2]
[388504277,1759222239101,-4894.15,0.00019496,2]
[388504278,1759222239111,-500.0,0.00019496,2]
[388504279,1759222239123,-219.13890796,0.00019496,2]
[388504280,1759222239136,-657.01,0.00019496,2]
[388504281,1759222239147,-513.73,0.00019496,2]
[388504282,1759222239157,-1528.07,0.00019496,2]
[388504283,1759222239168,-17233.93,0.00019496,2]
[388504284,1759222239179,-500.0,0.00019496,2]
[388504285,1759222239189,-500.0,0.00019496,2]
[388504286,1759222239200,-698.04,0.00019496,2]
[388504287,1759222239210,-505.75,0.00019496,2]
[388504288,1759222239220,-866.99,0.00019496,2]
[388504289,1759222239230,-1025.16,0.00019496,2]
[388504290,1759222239240,-500.0,0.00019496,2]
[388504292,1759222239250,-661.14,0.00019496,2]
[388504294,1759222239261,-1024.57,0.00019496,2]
[388504295,1759222239271,-950.24,0.00019496,2]
[388504296,1759222239282,-5412.08,0.00019496,2]
[388504297,1759222239292,-2213.75,0.00019496,2]
[388504298,1759222239303,-2013.41,0.00019496,2]
[388504300,1759222239312,-500.0,0.00019496,2]
[388504301,1759222239322,-2802.06,0.00019496,2]
[388504302,1759222239332,-1671.35,0.00019496,2]
[388504303,1759222239343,-5671.22,0.00019496,2]
[388504304,1759222239359,-738.53,0.00019496,2]
[388504305,1759222239369,-925.19,0.00019496,2]
[388504306,1759222239378,-500.0,0.00019496,2]
[388504307,1759222239388,-500.0,0.00019496,2]
[388504308,1759222239397,-4496.96,0.00019496,2]
[388504309,1759222239407,-1431.66,0.00019496,2]
[388504310,1759222239416,-1009.2,0.00019496,2]
[388504311,1759222239425,-13320.92,0.00019496,2]
[388504312,1759222239435,-500.0,0.00019496,2]
[388504313,1759222239445,-11054.141627,0.00019496,2]
[388504314,1759222239455,-526.741572,0.00019496,2]
[388504315,1759222239464,-532.878419,0.00019496,2]
[388504316,1759222239474,-500.0,0.00019496,2]
[388504317,1759222239484,-5298.050883,0.00019496,2]
[388504318,1759222239494,-408.514422,0.00019496,2]
[388504319,1759222239503,-9380.712369,0.00019496,2]
[388504320,1759222239512,-517.44,0.00019496,2]
[388504321,1759222239522,-1909.61,0.00019496,2]
[388504322,1759222239532,-611.05,0.00019496,2]
[388504323,1759222239542,-1016.41,0.00019496,2]
[388504324,1759222239552,-500.0,0.00019496,2]
[388504325,1759222239562,-3491.72,0.00019496,2]
[388504326,1759222239573,-500.0,0.00019496,2]
[388504327,1759222239583,-500.0,0.00019496,2]
[388504328,1759222239593,-1155.6,0.00019496,2]
[388504329,1759222239603,-4328.41,0.00019496,2]
[388504330,1759222239613,-574.32,0.00019496,2]
[388504331,1759222239622,-4329.8,0.00019496,2]
[388504332,1759222239632,-500.0,0.00019496,2]
[388504333,1759222239642,-524.97,0.00019496,2]
[388504334,1759222239652,-500.0,0.00019496,2]
[388504335,1759222239662,-500.0,0.00019496,2]
[388504336,1759222239671,-6768.32,0.00019496,2]
[388504337,1759222239681,-500.0,0.00019496,2]
[388504338,1759222239690,-500.0,0.00019496,2]
[388504339,1759222239700,-500.0,0.00019496,2]
[388504340,1759222239709,-500.0,0.00019496,2]
[388504341,1759222239719,-1255.46,0.00019496,2]
[388504342,1759222239732,-2215.98,0.00019496,2]
[388504343,1759222239742,-500.0,0.00019496,2]
[388504344,1759222239752,-4731.37,0.00019496,2]
[388504345,1759222239762,-1096.15,0.00019496,2]
[388504346,1759222239772,-1507.87,0.00019496,2]
[388504347,1759222239782,-500.0,0.00019496,2]
[388504348,1759222239792,-597.53,0.00019496,2]
[388504349,1759222239802,-6116.44,0.00019496,2]
[388504350,1759222239811,-4432.02,0.00019496,2]
[388504351,1759222239821,-500.0,0.00019496,2]
[388504353,1759222239831,-9742.34,0.00019496,2]
[388504354,1759222239840,-500.0,0.00019496,2]
[388504355,1759222239850,-743.79,0.00019496,2]
[388504356,1759222239860,-500.0,0.00019496,2]
[388504357,1759222239870,-4554.23,0.00019496,2]
[388504358,1759222239880,-22676.94,0.00019496,2]
[388504359,1759222239890,-500.0,0.00019496,2]
[388504360,1759222239900,-2281.66,0.00019496,2]
[388504361,1759222239909,-500.0,0.00019496,2]
[388504362,1759222239919,-500.0,0.00019496,2]
[388504363,1759222239928,-1347.16,0.00019496,2]
[388504364,1759222239938,-500.0,0.00019496,2]
[388504365,1759222239947,-500.0,0.00019496,2]
[388504366,1759222239957,-3917.05,0.00019496,2]
[388504367,1759222239968,-8437.68,0.00019496,2]
[388504368,1759222239978,-500.0,0.00019496,2]
[388504369,1759222239988,-500.0,0.00019496,2]
[388504370,1759222239998,-500.0,0.00019496,2]
[388504371,1759222240008,-500.0,0.00019496,2]
[388504372,1759222240017,-1294.39,0.00019496,2]
[388504373,1759222240027,-500.0,0.00019496,2]
[388504374,1759222240037,-7445.48,0.00019496,2]
[388504375,1759222240046,-2092.7,0.00019496,2]